fUSD/lending_fUSD_20250417
["ID","MTS","AMOUNT","RATE_DAILY","PERIOD"]
[358240403,1744866646266,-500.0,0.00052054,120]
[358240404,1744866646277,-500.0,0.00052054,120]
[358240405,1744866646287,-500.0,0.00052054,120]
[358240406,1744866646296,-500.0,0.00052054,120]
[358240407,1744866646306,-500.0,0.00052054,120]
[358240408,1744866646316,-500.0,0.00052054,120]
[358240409,1744866646326,-500.0,0.00052054,120]
[358240410,1744866646335,-877.77,0.00052054,120]
[358240411,1744866646345,-569.83,0.00052054,120]
[358240412,1744866646355,-500.0,0.00052054,120]
[358240413,1744866646365,-500.0,0.00052054,120]
[358240414,1744866646374,-500.0,0.00052054,120]
[358240415,1744866646384,-1779.85,0.00052054,120]
[358240416,1744866646394,-500.0,0.00052054,120]
[358240417,1744866646403,-1294.03,0.00052054,120]
[358240418,1744866646413,-500.0,0.00052054,120]
[358240419,1744866646423,-715.91,0.00052054,2]
[358240420,1744866646433,-500.0,0.00052054,120]
[358240421,1744866646443,-1630.7,0.00052054,120]
[358240422,1744866646452,-500.0,0.00052054,120]
[358240423,1744866646461,-500.0,0.00052054,120]
[358240424,1744866646471,-1348.6,0.00052054,120]
[358240425,1744866646480,-1426.26,0.00052054,120]
[358240426,1744866646490,-554.77086873,0.00052054,120]
[358240427,1744866646499,-1110.06,0.00052054,120]
[358240428,1744866646508,-583.16,0.00052054,120]
[358240429,1744866646518,-500.0,0.00052054,120]
[358240430,1744866646526,-500.0,0.00052054,120]
[358240431,1744866646535,-719.9,0.00052054,120]
[358240432,1744866646544,-640.04,0.00052054,120]
[358240433,1744866646553,-296.01616743,0.00052054,120]
[358240434,1744866646562,-1608.64,0.00052054,120]
[358240435,1744866646572,-500.0,0.00052054,120]
[358240436,1744866646581,-500.0,0.00052054,120]
[358240437,1744866646591,-500.0,0.00052054,120]
[358240438,1744866646600,-500.0,0.00052054,120]
[358240439,1744866646609,-1761.88,0.00052054,120]
[358240440,1744866646619,-805.72,0.00052054,120]
[358240441,1744866646628,-500.0,0.00052054,120]
[358240442,1744866646637,-1010.22,0.00052054,120]
[358240443,1744866646647,-500.0,0.00052054,120]
[358240444,1744866646656,-636.91,0.00052054,120]
[358240445,1744866646665,-1491.75,0.00052054,120]
[358240446,1744866646675,-1227.68,0.00052054,120]
[358240447,1744866646684,-500.0,0.00052054,120]
[358240448,1744866646693,-2671.82,0.00052054,120]
[358240449,1744866646703,-163.84942701,0.00052054,120]
[358240450,1744866646712,-575.53,0.00052054,120]
[358240451,1744866646721,-737.57,0.00052054,120]
[358240452,1744866646731,-500.0,0.00052054,120]
[358240453,1744866646740,-557.51690141,0.00052054,120]
[358240454,1744866646749,-1137.16,0.00052054,120]
[358240455,1744866646758,-521.76939274,0.00052054,120]
[358240456,1744866646767,-2154.6,0.00052054,120]
[358240457,1744866646776,-500.0,0.00052054,120]
[358240458,1744866646785,-1000.0,0.00052054,120]
[358240459,1744866646795,-500.0,0.00052054,120]
[358240460,1744866646804,-2490.99,0.00052054,120]
[358240461,1744866646814,-814.65,0.00052054,120]
[358240462,1744866646823,-756.68,0.00052054,120]
[358240463,1744866646833,-968.3,0.00052054,120]
[358240464,1744866646842,-500.0,0.00052054,120]
[358240465,1744866646852,-500.0,0.00052054,120]
[358240466,1744866646862,-500.0,0.00052054,120]
[358240467,1744866646871,-500.0,0.00052054,120]
[358240468,1744866646881,-500.0,0.00052054,120]
[358240469,1744866646891,-505.65,0.00052054,120]
[358240470,1744866646900,-1952.13,0.00052054,120]
[358240471,1744866646910,-500.0,0.00052054,120]
[358240472,1744866646920,-500.0,0.00052054,120]
[358240473,1744866646930,-500.0,0.00052054,120]
[358240474,1744866646939,-500.0,0.00052054,120]
[358240475,1744866646948,-500.0,0.00052054,120]
[358240476,1744866646958,-500.0,0.00052054,120]
[358240477,1744866646967,-955.9,0.00052054,120]
[358240478,1744866646977,-500.0,0.00052054,120]
[358240479,1744866646987,-500.0,0.00052054,120]
[358240480,1744866646997,-1071.69,0.00052054,120]
[358240481,1744866647007,-818.79,0.00052054,120]
[358240482,1744866647017,-1119.93,0.00052054,120]
[358240483,1744866647027,-500.0,0.00052054,120]
[358240484,1744866647036,-500.0,0.00052054,120]
[358240485,1744866647045,-500.0,0.00052054,120]
[358240486,1744866647055,-600.56,0.00052054,120]
[358240487,1744866647065,-500.0,0.00052054,120]
[358240488,1744866647074,-500.0,0.00052054,120]
[358240489,1744866647084,-500.0,0.00052054,120]
[358240490,1744866647093,-3029.97,0.00052054,120]
[358240491,1744866647103,-893.44,0.00052054,118]
[358240492,1744866647113,-781.89,0.00052054,120]
[358240493,1744866647123,-516.28913478,0.00052054,120]
[358240494,1744866647134,-500.0,0.00052054,120]
[358240495,1744866647143,-500.0,0.00052054,120]
[358240496,1744866647153,-500.0,0.00052054,120]
[358240497,1744866647167,-563.51,0.00052054,120]
[358240498,1744866647176,-500.0,0.00052054,120]
[358240499,1744866647185,-1546.57,0.00052054,120]
[358240500,1744866647197,-1761.02,0.00052054,120]
[358240501,1744866647207,-500.0,0.00052054,120]
[358240502,1744866647217,-500.0,0.00052054,120]
[358240503,1744866647226,-1372.72,0.00052054,120]
[358240504,1744866647238,-500.0,0.00052054,120]
[358240505,1744866647247,-779.52,0.00052054,120]
[358240506,1744866647256,-500.0,0.00052054,120]
[358240507,1744866647266,-500.0,0.00052054,120]
[358240508,1744866647277,-569.87,0.00052054,120]
[358240509,1744866647287,-500.0,0.00052054,120]
[358240510,1744866647297,-500.0,0.00052054,120]
[358240511,1744866647306,-500.0,0.00052054,120]
[358240512,1744866647316,-967.37,0.00052054,120]
[358240513,1744866647325,-500.0,0.00052054,120]
[358240514,1744866647539,-500.0,0.00052054,120]
[358240515,1744866647549,-791.08,0.00052054,120]
[358240516,1744866647559,-500.0,0.00052054,120]
[358240517,1744866647568,-1339.04,0.00052054,120]
[358240518,1744866647578,-655.46,0.00052054,120]
[358240519,1744866647588,-500.0,0.00052054,120]
[358240520,1744866647598,-1577.54,0.00052054,120]
[358240521,1744866647608,-500.0,0.00052054,120]
[358240522,1744866647618,-580.1,0.00052054,120]
[358240523,1744866647628,-500.0,0.00052054,120]
[358240524,1744866647638,-655.56,0.00052054,120]
[358240525,1744866647648,-500.0,0.00052054,120]
[358240526,1744866647658,-692.03,0.00052054,120]
[358240527,1744866647668,-931.67,0.00052054,120]
[358240528,1744866647678,-500.0,0.00052054,120]
[358240529,1744866647687,-737.99,0.00052054,120]
[358240530,1744866647698,-543.25,0.00052054,120]
[358240531,1744866647707,-3567.38,0.00052054,120]
[358240532,1744866647717,-514.15,0.00052054,120]
[358240533,1744866647727,-500.0,0.00052054,120]
[358240534,1744866647736,-500.0,0.00052054,120]
[358240535,1744866647746,-500.0,0.00052054,120]
[358240536,1744866647757,-500.0,0.00052054,120]
[358240537,1744866647767,-2530.02,0.00052054,120]
[358240538,1744866647776,-3018.8,0.00052054,120]
[358240539,1744866647786,-873.47,0.00052054,120]
[358240540,1744866647796,-500.0,0.00052054,120]
[358240541,1744866647806,-500.0,0.00052054,120]
[358240542,1744866647815,-814.17,0.00052054,120]
[358240543,1744866647825,-569.33,0.00052054,120]
[358240544,1744866647835,-1053.46,0.00052054,120]
[358240545,1744866647845,-2429.25,0.00052054,120]
[358240546,1744866647855,-500.0,0.00052054,120]
[358240547,1744866647864,-500.0,0.00052054,120]
[358240548,1744866647874,-1407.76,0.00052054,120]
[358240549,1744866647883,-735.82,0.00052054,120]
[358240550,1744866647894,-500.0,0.00052054,120]
[358240551,1744866647904,-500.0,0.00052054,120]
[358240552,1744866647914,-500.0,0.00052054,120]
[358240553,1744866647924,-500.0,0.00052054,120]
[358240554,1744866647934,-578.67,0.00052054,120]
[358240555,1744866647944,-500.0,0.00052054,120]
[358240556,1744866647955,-1066.57,0.00052054,120]
[358240557,1744866647964,-500.0,0.00052054,120]
[358240558,1744866647976,-500.0,0.00052054,120]
[358240559,1744866647986,-510.85,0.00052054,120]
[358240560,1744866647996,-569.15,0.00052054,120]
[358240561,1744866648007,-894.01,0.00052054,120]
[358240562,1744866648017,-500.0,0.00052054,120]
[358240563,1744866648027,-500.0,0.00052054,120]
[358240564,1744866648037,-500.0,0.00052054,120]
[358240565,1744866648046,-500.0,0.00052054,120]
[358240566,1744866648056,-511.35,0.00052054,120]
[358240567,1744866648065,-500.0,0.00052054,120]
[358240568,1744866648075,-500.0,0.00052054,120]
[358240569,1744866648085,-862.8,0.00052054,120]
[358240570,1744866648095,-58.63693372,0.00052054,120]
[358240571,1744866648438,-499.54306628,0.00052054,120]
[358240572,1744866648448,-227.86177011,0.00052054,120]
[358240573,1744866648460,-1232.39822989,0.00052054,120]
[358240574,1744866648470,-1209.61,0.00052054,120]
[358240575,1744866648480,-500.0,0.00052054,120]
[358240576,1744866648490,-939.88,0.00052054,8]
[358240577,1744866648500,-500.0,0.00052054,120]
[358240578,1744866648510,-500.0,0.00052054,120]
[358240579,1744866648519,-699.54,0.00052054,120]
[358240580,1744866648529,-1067.99,0.00052054,120]
[358240581,1744866648538,-500.0,0.00052054,120]
[358240582,1744866648548,-500.0,0.00052054,120]
[358240583,1744866648557,-500.0,0.00052054,120]
[358240584,1744866648567,-500.0,0.00052054,2]
[358240585,1744866648577,-1141.77,0.00052054,120]
[358240586,1744866648586,-500.0,0.00052054,120]
[358240587,1744866648596,-2349.46,0.00052054,120]
[358240588,1744866648606,-2615.67,0.00052054,120]
[358240589,1744866648615,-500.0,0.00052054,120]
[358240590,1744866648625,-1092.14,0.00052054,120]
[358240591,1744866648634,-155.61957864,0.00052054,120]
[358240592,1744866648646,-1347.32042136,0.00052054,120]
[358240593,1744866648655,-500.0,0.00052054,120]
[358240594,1744866648665,-1036.91528428,0.00052055,60]
[358240595,1744866649439,-1152.71537545,0.00052055,60]
[358240596,1744866649610,-251.36934027,0.00052055,60]
[358240597,1744866649621,-488.0,0.00052055,60]
[358240598,1744866649630,-150.0,0.00052055,60]
[358240599,1744866649640,-500.0,0.00052055,2]
[358240600,1744866649650,-500.0,0.00052055,2]
[358240601,1744866649659,-150.0,0.00052055,2]
[358240602,1744866649669,-150.0,0.00052055,2]
[358240603,1744866649678,-500.0,0.00052055,2]
[358240604,1744866649688,-200.25827935,0.00052055,2]
[358240605,1744866649697,-500.0,0.00052055,2]
[358240606,1744866649707,-500.0,0.00052055,2]
[358240607,1744866649716,-150.0,0.00052055,2]
[358240608,1744866649725,-150.0,0.00052055,2]
[358240609,1744866649735,-150.0,0.00052055,2]
[358240610,1744866649743,-63.96963075,0.00052055,2]
[358240611,1744866649755,-86.03036925,0.00052055,2]
[358240612,1744866649764,-366.96963075,0.00052055,2]
[358240613,1744866649775,-133.03036925,0.00052055,2]
[358240614,1744866649784,-366.96963075,0.00052055,120]
[358240615,1744866649795,-133.03036925,0.00052055,120]
[358240616,1744866649804,-500.0,0.00052055,120]
[358240617,1744866649813,-236.27718911,0.00052055,120]
[358240618,1744866649825,-263.72281089,0.00052055,120]
[358240619,1744866649834,-500.0,0.00052055,120]
[358240620,1744866649843,-500.0,0.00052055,120]
[358240621,1744866649853,-495.63718909,0.00052055,120]
[358240622,1744866650154,-500.0,0.00052054,120]
[358240623,1744866650164,-4.36281091,0.00052055,120]
[358240624,1744866650173,-48.98447464,0.00052055,120]
[358240625,1744866650286,-451.01552536,0.00052055,120]
[358240626,1744866650296,-237.6071128,0.00052055,120]
[358240627,1744866650307,-262.3928872,0.00052055,120]
[358240628,1744866650316,-500.0,0.00052055,120]
[358240629,1744866650326,-172.9859278,0.00052055,120]
[358240630,1744866650356,-327.0140722,0.00052055,120]
[358240631,1744866650365,-500.0,0.00052055,120]
[358240632,1744866650375,-500.0,0.00052055,120]
[358240633,1744866650385,-500.0,0.00052055,120]
[358240634,1744866650395,-500.0,0.00052055,120]
[358240635,1744866650404,-500.0,0.00052055,120]
[358240636,1744866650414,-500.0,0.00052055,120]
[358240637,1744866650424,-500.0,0.00052055,120]
[358240638,1744866650433,-500.0,0.00052055,120]
[358240639,1744866650442,-500.0,0.00052055,120]
[358240640,1744866650452,-500.0,0.00052055,120]
[358240641,1744866650462,-500.0,0.00052055,120]
[358240642,1744866650472,-150.0,0.00052055,2]
[358240643,1744866650482,-500.0,0.00052055,120]
[358240644,1744866650491,-500.0,0.00052055,120]
[358240645,1744866650501,-500.0,0.00052055,120]
[358240646,1744866650512,-500.0,0.00052055,120]
[358240647,1744866650522,-500.0,0.00052055,120]
[358240648,1744866650534,-500.0,0.00052055,120]
[358240649,1744866650543,-500.0,0.00052055,120]
[358240650,1744866650553,-500.0,0.00052055,120]
[358240651,1744866650563,-500.0,0.00052055,120]
[358240652,1744866650573,-500.0,0.00052055,120]
[358240653,1744866650583,-500.0,0.00052055,120]
[358240654,1744866650595,-307.66916026,0.00052055,120]
[358240655,1744866650605,-500.0,0.00052055,120]
[358240656,1744866650614,-500.0,0.00052055,120]
[358240657,1744866650623,-500.0,0.00052055,120]
[358240658,1744866650632,-500.0,0.00052055,120]
[358240659,1744866650642,-500.0,0.00052055,120]
[358240660,1744866650651,-500.0,0.00052055,120]
[358240661,1744866650660,-500.0,0.00052055,2]
[358240662,1744866650670,-500.0,0.00052055,120]
[358240663,1744866650679,-500.0,0.00052055,120]
[358240664,1744866650689,-500.0,0.00052055,120]
[358240665,1744866650698,-500.0,0.00052055,120]
[358240666,1744866650709,-500.0,0.00052055,120]
[358240667,1744866650718,-500.0,0.00052055,120]
[358240668,1744866650728,-500.0,0.00052055,120]
[358240669,1744866650737,-500.0,0.00052055,120]
[358240670,1744866650747,-500.0,0.00052055,120]
[358240671,1744866650756,-500.0,0.00052055,120]
[358240672,1744866650766,-500.0,0.00052055,120]
[358240673,1744866650775,-500.0,0.00052055,120]
[358240674,1744866650784,-500.0,0.00052055,120]
[358240675,1744866650793,-500.0,0.00052055,120]
[358240676,1744866650802,-500.0,0.00052055,120]
[358240677,1744866650811,-500.0,0.00052055,120]
[358240678,1744866650821,-500.0,0.00052055,120]
[358240679,1744866650831,-500.0,0.00052055,120]
[358240680,1744866650840,-500.0,0.00052055,120]
[358240681,1744866650850,-500.0,0.00052055,120]
[358240682,1744866650859,-500.0,0.00052055,120]
[358240683,1744866650869,-500.0,0.00052055,120]
[358240684,1744866650878,-500.0,0.00052055,120]
[358240685,1744866650888,-500.0,0.00052055,120]
[358240686,1744866650897,-500.0,0.00052055,120]
[358240687,1744866650908,-500.0,0.00052055,120]
[358240688,1744866650918,-500.0,0.00052055,120]
[358240689,1744866650927,-500.0,0.00052055,120]
[358240690,1744866650937,-500.0,0.00052055,120]
[358240691,1744866650946,-500.0,0.00052055,120]
[358240692,1744866650955,-505.81743296,0.00052055,120]
[358240693,1744866650965,-500.0,0.00052055,120]
[358240694,1744866650975,-500.0,0.00052055,120]
[358240695,1744866650985,-500.0,0.00052055,120]
[358240696,1744866650995,-500.0,0.00052055,120]
[358240697,1744866651004,-500.0,0.00052055,120]
[358240698,1744866651013,-500.0,0.00052055,120]
[358240699,1744866651023,-500.0,0.00052055,120]
[358240700,1744866651032,-500.0,0.00052055,120]
[358240701,1744866651042,-500.0,0.00052055,120]
[358240702,1744866651051,-500.0,0.00052055,120]
[358240703,1744866651060,-210.11634866,0.00052055,120]
[358240704,1744866651070,-500.0,0.00052055,120]
[358240705,1744866651079,-500.0,0.00052055,120]
[358240706,1744866651089,-500.0,0.00052055,120]
[358240707,1744866651098,-500.0,0.00052055,120]
[358240708,1744866651108,-198.86992247,0.00052055,2]
[358240709,1744866651117,-500.0,0.00052055,2]
[358240710,1744866651127,-150.0,0.00052055,2]
[358240711,1744866651136,-500.0,0.00052055,2]
[358240712,1744866651146,-500.0,0.00052055,2]
[358240713,1744866651156,-500.0,0.00052055,2]
[358240714,1744866651166,-150.0,0.00052055,2]
[358240715,1744866651175,-500.0,0.00052055,2]
[358240716,1744866651186,-500.0,0.00052055,2]
[358240717,1744866651199,-150.1,0.00052066,2]
[358240718,1744866651208,-501.98177829,0.00052073,10]
[358240719,1744866651218,-500.0,0.00052073,10]
[358240720,1744866651228,-9885.43128516,0.00052106,4]
[358240721,1744866651242,-3239.60707612,0.00052106,4]
[358240722,1744866651253,-429.40981895,0.00052106,4]
[358240723,1744866651354,-326.88027612,0.00052106,4]
[358240724,1744866992960,3006.62721683,0.0001988,2]
[358240726,1744867297107,250.0,0.00017,2]
[358240727,1744867298190,300.0,0.00019,2]
[358240728,1744867301720,-249.98613413,0.00021,2]
[358240729,1744867322813,-100.01386587,0.00021,2]
[358240730,1744867322839,-80.55949737,0.00023,2]
[358240731,1744867356350,-319.44050263,0.00023,2]
[358240732,1744867356377,-6.01215009,0.00023,2]
[358240733,1744867365651,-274.46244612,0.0005,120]
[358240734,1744867456816,-250.0,0.000231,2]
[358240735,1744867456841,-15.46207263,0.00024016,2]
[358240736,1744867508110,563657.0123522,0.00018,2]
[358240737,1744867510151,465.9134644,0.000154,2]
[358240738,1744867519506,2917.92725954,9e-05,2]
[358240739,1744867536230,440.17000931,9e-05,2]
[358240740,1744867597154,-234.53792737,0.00024016,2]
[358240741,1744867597176,-236.97044315,0.00024832,2]
[358240743,1744867621885,-400.7833,0.00024,5]
[358240745,1744867631084,-797.94695124,0.00024,5]
[358240746,1744867631940,-250.0,0.00024,5]
[358240747,1744867636036,205.0,9.8e-05,2]
[358240748,1744867641075,-259.5132306,0.00024,5]
[358240749,1744867641097,-155.46,0.00024932,2]
[358240750,1744867641121,-450.0,0.00025,2]
[358240751,1744867641143,-250.0,0.0002541,2]
[358240752,1744867641165,-85.60484761,0.000265,30]
[358240754,1744867762081,-277.90114759,0.0002488,7]
[358240768,1744867831767,-66.02815239,0.000265,30]
[358240770,1744867831780,-155.46,0.00031935,2]
[358240771,1744867831795,-171.39,0.00032877,30]
[358240772,1744867831809,-55.02853201,0.00035015,2]
[358240773,1744867831840,-194.97146799,0.00035015,2]
[358240774,1744867831852,-151.0,0.00035201,2]
[358240775,1744867831864,-151.0,0.00035201,2]
[358240776,1744867831875,-151.0,0.00035408,2]
[358240777,1744867831885,-151.0,0.00035408,2]
[358240778,1744867831897,-151.0,0.00035496,2]
[358240779,1744867831907,-151.0,0.00035496,2]
[358240780,1744867831921,-151.0,0.00035575,2]
[358240781,1744867831935,-151.0,0.00035575,2]
[358240782,1744867831946,-155.46,0.00038938,2]
[358240783,1744867831956,-1190.70781875,0.00044095,2]
[358240784,1744867831966,-550.0,0.00044194,5]
[358240785,1744867831977,-550.0,0.00044194,5]
[358240786,1744867831988,-2101.85,0.00044195,120]
[358240787,1744867832000,-7112.06388536,0.00044195,2]
[358240788,1744867832011,-21866.1061954,0.00044195,7]
[358240789,1744867832023,-331.14851368,0.00044195,7]
[358240790,1744867832039,-1611.99667624,0.00044195,7]
[358240848,1744867837872,-387.27,0.00044195,7]
[358240850,1744867838053,-10606.32200363,0.00044195,7]
[358240851,1744867838064,-917.98524945,0.00044195,3]
[358240852,1744867838075,-2049.33415164,0.00044195,3]
[358240853,1744867838086,-1106.30344565,0.00044195,2]
[358240854,1744867838097,-204.13980739,0.000442,10]
[358240855,1744867838108,-155.46,0.00045942,2]
[358240856,1744867838119,-770.0,0.00046934,5]
[358240857,1744867838131,-716.4,0.00047558,2]
[358240858,1744867838143,-1000.0,0.00049209,2]
[358240859,1744867838154,-673.1440906,0.00049684,4]
[358240860,1744867838166,-716.4,0.00049821,2]
[358240861,1744867838177,-1077.0,0.00049845,5]
[358240862,1744867838188,-167.53,0.0004989,2]
[358240863,1744867838201,-714.32755388,0.0005,120]
[358240864,1744867838212,-500.0,0.0005,120]
[358240865,1744867838224,-500.0,0.0005,120]
[358240866,1744867838235,-500.0,0.0005,120]
[358240867,1744867838246,-500.0,0.0005,120]
[358240868,1744867838257,-500.0,0.0005,120]
[358240869,1744867838268,-500.0,0.0005,120]
[358240870,1744867838279,-500.0,0.0005,120]
[358240871,1744867838291,-500.0,0.0005,120]
[358240872,1744867838302,-500.0,0.0005,120]
[358240873,1744867838314,-113.58469648,0.0005,120]
[358240874,1744867838328,-384.39484856,0.0005,120]
[358240877,1744867838356,-2.02045496,0.0005,120]
[358240878,1744867838370,-500.0,0.0005,120]
[358240879,1744867838381,-500.0,0.0005,120]
[358240880,1744867838396,-503.0,0.0005,120]
[358240881,1744867838407,-1565.41,0.0005,120]
[358240882,1744867838418,-2000.0,0.000504,2]
[358240883,1744867838429,-302.2,0.00050764,120]
[358240884,1744867838440,-194.57,0.00050881,2]
[358240885,1744867838452,-244.61,0.00050962,2]
[358240886,1744867838463,-150.32,0.00050994,120]
[358240887,1744867838474,-150.0,0.00051,120]
[358240888,1744867838485,-151.82,0.00051119,120]
[358240889,1744867838497,-329.64778228,0.00051197,2]
[358240890,1744867838511,-480.02925301,0.00051197,2]
[358240894,1744867840023,-1138.92296471,0.00051197,2]
[358240895,1744867840033,-442.37542347,0.00051371,30]
[358240896,1744867840045,-5.57457653,0.00051371,30]
[358240897,1744867840061,-500.0,0.00051602,120]
[358240898,1744867840070,-500.0,0.00051602,120]
[358240899,1744867840080,-313.04,0.00051602,120]
[358240900,1744867840091,-718.0365,0.00051954,2]
[358240901,1744867840100,-2500.0,0.00051954,2]
[358240902,1744867840110,-172.81483386,0.00051954,28]
[358240903,1744867840120,-1487.90183304,0.00051954,24]
[358240904,1744867840130,-5414.5846575,0.00051954,15]
[358240905,1744867840140,-2827.17359478,0.00051954,15]
[358240906,1744867840150,-2417.6156649,0.00051999,120]
[358240907,1744867840249,-0.02088774,0.00051999,120]
[358240908,1744867840261,-10250.00476476,0.00051999,120]
[358240909,1744867840270,-3387.59985203,0.00052,120]
[358240910,1744867840279,-1000.0,0.00052,20]
[358240911,1744867840290,-1000.0,0.00052,13]
[358240912,1744867840300,-1000.0,0.00052,13]
[358240913,1744867840310,-1000.0,0.00052,13]
[358240914,1744867840319,-1000.0,0.00052,13]
[358240915,1744867840329,-1000.0,0.00052,13]
[358240916,1744867840339,-3000.0,0.00052,120]
[358240917,1744867840348,-1000.0,0.00052,15]
[358240918,1744867840358,-150.0,0.00052033,7]
[358240919,1744867840369,-13806.45188322,0.00052044,4]
[358240920,1744867840381,-4649.47818718,0.00052044,4]
[358240921,1744867840413,-1555.83520977,0.00052044,4]
[358240922,1744867840430,-1429.87219423,0.00052044,4]
[358240923,1744867840442,-1176.12917094,0.00052044,4]
[358240926,1744867841719,-300.0,0.00052054,120]
[358240934,1744867843564,-9814.84087356,0.00052044,4]
[358240935,1744867843574,-965.39,0.00052044,2]
[358240936,1744867843583,-500.0,0.00052053,31]
[358240937,1744867843592,-346.36938965,0.00052053,31]
[358240938,1744867843601,-441.06353063,0.00052054,30]
[358240939,1744867843611,-200.0,0.00052054,120]
[358240940,1744867843620,-503.36742057,0.00052054,120]
[358240941,1744867843630,-500.0,0.00052054,120]
[358240942,1744867843639,-1465.77,0.00052054,120]
[358240943,1744867843648,-547.75,0.00052054,120]
[358240944,1744867843658,-2656.09,0.00052054,120]
[358240945,1744867843667,-500.0,0.00052054,120]
[358240946,1744867843676,-715.45,0.00052054,120]
[358240947,1744867843685,-500.0,0.00052054,120]
[358240948,1744867843694,-500.0,0.00052054,120]
[358240949,1744867843703,-500.0,0.00052054,120]
[358240950,1744867843713,-500.0,0.00052054,120]
[358240951,1744867843722,-500.0,0.00052054,14]
[358240952,1744867843731,-500.0,0.00052054,120]
[358240953,1744867843740,-500.0,0.00052054,120]
[358240954,1744867843749,-500.0,0.00052054,120]
[358240955,1744867843758,-500.0,0.00052054,14]
[358240956,1744867843768,-500.0,0.00052054,120]
[358240957,1744867843777,-500.0,0.00052054,120]
[358240958,1744867843786,-500.0,0.00052054,120]
[358240959,1744867843795,-683.48,0.00052054,120]
[358240960,1744867843804,-500.0,0.00052054,120]
[358240961,1744867843814,-500.0,0.00052054,120]
[358240962,1744867843823,-500.0,0.00052054,120]
[358240963,1744867843832,-500.0,0.00052054,120]
[358240964,1744867843842,-500.0,0.00052054,120]
[358240965,1744867843851,-648.37,0.00052054,120]
[358240966,1744867843860,-382.85606785,0.00052054,120]
[358240967,1744867843870,-500.0,0.00052054,120]
[358240968,1744867843879,-461.10950296,0.00052054,120]
[358240969,1744867843888,-500.0,0.00052054,120]
[358240970,1744867843897,-500.0,0.00052054,120]
[358240971,1744867843906,-554.14,0.00052054,120]
[358240972,1744867843915,-500.0,0.00052054,120]
[358240973,1744867843924,-500.0,0.00052054,120]
[358240974,1744867843934,-500.0,0.00052054,120]
[358240975,1744867843943,-500.0,0.00052054,120]
[358240976,1744867843953,-500.0,0.00052054,120]
[358240977,1744867843962,-732.4,0.00052054,120]
[358240978,1744867843971,-500.0,0.00052054,120]
[358240979,1744867843980,-256.67164329,0.00052054,120]
[358240980,1744867843989,-500.0,0.00052054,120]
[358240981,1744867843999,-300.0,0.00052054,120]
[358240982,1744867844009,-332.33750097,0.00052054,120]
[358240983,1744867844019,-441.11421888,0.00052054,120]
[358240984,1744867844028,-500.0,0.00052054,120]
[358240985,1744867844038,-1024.88,0.00052054,120]
[358240986,1744867844047,-841.76,0.00052054,95]
[358240987,1744867844057,-507.50894623,0.00052054,120]
[358240988,1744867844066,-500.0,0.00052054,120]
[358240989,1744867844076,-631.79,0.00052054,120]
[358240990,1744867844085,-500.0,0.00052054,120]
[358240991,1744867844095,-550.93,0.00052054,120]
[358240992,1744867844107,-1792.96,0.00052054,120]